fUSD/lending_fUSD_20260219
["ID","MTS","AMOUNT","RATE_DAILY","PERIOD"]
[405974917,1771487471983,-1486.19757,0.00027397,2]
[405974918,1771487471993,-1486.19757,0.00027397,2]
[405974919,1771487472002,-1486.19757,0.00027397,2]
[405974920,1771487472011,-1486.19757,0.00027397,2]
[405974921,1771487472024,-1486.19757,0.00027397,2]
[405974922,1771487472034,-1486.19757,0.00027397,2]
[405974923,1771487472044,-1486.197562,0.00027397,2]
[405974924,1771487472054,-150.0,0.00027397,5]
[405974925,1771487472064,-745.65223616,0.00027492,2]
[405974926,1771487472073,-929.95823779,0.00027492,2]
[405974927,1771487472083,-3995.99,0.000275,7]
[405974928,1771487472093,-201.70019998,0.000275,2]
[405974929,1771487472103,-550.99907524,0.000275,2]
[405974930,1771487472116,-150.0,0.0002766,120]
[405974931,1771487472125,-150.0,0.0002766,120]
[405974932,1771487472135,-245.0,0.0002766,120]
[405974933,1771487472144,-456.17118137,0.00027671,30]
[405974934,1771487472154,-380.14265114,0.00027945,30]
[405974935,1771487472164,-250.0,0.00027945,5]
[405974936,1771487472174,-160.0,0.00028,2]
[405974937,1771487472185,-1000.0,0.00028,60]
[405974938,1771487472195,-50986.65398442,0.00028,2]
[405974939,1771487472204,-171.0,0.00028,2]
[405974940,1771487472214,-500.0,0.00028,5]
[405974941,1771487472228,-500.0,0.00028,5]
[405974942,1771487472238,-617.0,0.00028195,2]
[405974943,1771487472249,-3492.0,0.00028195,2]
[405974944,1771487472258,-1275.0,0.00028195,2]
[405974945,1771487472268,-1209.0,0.00028195,2]
[405974946,1771487472278,-413.0,0.00028195,2]
[405974947,1771487472288,-2453.0,0.00028195,2]
[405974948,1771487472298,-919.0,0.00028195,2]
[405974949,1771487472307,-304.11412092,0.00028356,30]
[405974950,1771487472318,-300.0,0.000284,120]
[405974951,1771487472328,-167.27,0.00028493,2]
[405974952,1771487472338,-353.94847041,0.00028493,5]
[405974953,1771487472347,-150.0,0.00028544,2]
[405974954,1771487472357,-198.0,0.00028632,19]
[405974955,1771487472367,-228.08559069,0.00028767,30]
[405974956,1771487472377,-152.0,0.00028812,3]
[405974957,1771487472386,-3995.99,0.00029,7]
[405974958,1771487472396,-503.57932645,0.00029,2]
[405974959,1771487472406,-1741.42188032,0.00029,2]
[405974960,1771487472419,-600.0,0.00029,2]
[405974961,1771487472429,-2000.0,0.00029,2]
[405974962,1771487472438,-152.05706046,0.00029452,30]
[405974963,1771487472448,-222.45,0.00029485,30]
[405974964,1771487472458,-79123.30741494,0.000299,2]
[405974965,1771487472469,-150.0,0.00029971,2]
[405974966,1771487472479,-237.962856,0.0002999,2]
[405974967,1771487472489,-19929.15014035,0.0003,2]
[405974968,1771487472499,-320.30088523,0.0003,2]
[405974969,1771487472509,-1823.38231886,0.0003,2]
[405974970,1771487472519,-163.54517125,0.0003,2]
[405974971,1771487472529,-500.0,0.0003,120]
[405974972,1771487472539,-1688.52,0.0003,30]
[405974973,1771487472548,-272.85,0.0003,2]
[405974974,1771487472558,-160.5,0.0003,2]
[405974975,1771487472568,-7513.19197671,0.0003,2]
[405974976,1771487472578,-234.6,0.0003,2]
[405974977,1771487472588,-160.0,0.0003,30]
[405974978,1771487472598,-173.66088786,0.0003,30]
[405974979,1771487472608,-173.66088786,0.0003,7]
[405974980,1771487472621,-1509.728642,0.0003,2]
[405974981,1771487472631,-152.75,0.0003,2]
[405974982,1771487472641,-152.75,0.0003,2]
[405974983,1771487472651,-152.75,0.0003,2]
[405974984,1771487472661,-152.75,0.0003,2]
[405974985,1771487472670,-152.75,0.0003,2]
[405974986,1771487472680,-152.75,0.0003,2]
[405974987,1771487472689,-152.75,0.0003,2]
[405974988,1771487472699,-152.75,0.0003,2]
[405974989,1771487472709,-152.75,0.0003,2]
[405974990,1771487472719,-152.75,0.0003,2]
[405974991,1771487472729,-152.75,0.0003,2]
[405974992,1771487472737,-152.75,0.0003,2]
[405974993,1771487472747,-152.75,0.0003,2]
[405974994,1771487472756,-152.75,0.0003,2]
[405974995,1771487472765,-152.75,0.0003,2]
[405974996,1771487472775,-152.75,0.0003,2]
[405974997,1771487472785,-152.75,0.0003,2]
[405974998,1771487472794,-152.75,0.0003,2]
[405974999,1771487472807,-152.75,0.0003,2]
[405975000,1771487472816,-152.75,0.0003,2]
[405975001,1771487472826,-152.75,0.0003,2]
[405975002,1771487472835,-152.75,0.0003,2]
[405975003,1771487472844,-152.75,0.0003,2]
[405975004,1771487472854,-152.75,0.0003,2]
[405975005,1771487472863,-152.75,0.0003,2]
[405975006,1771487472873,-152.75,0.0003,2]
[405975007,1771487472883,-152.75,0.0003,2]
[405975008,1771487472892,-152.75,0.0003,2]
[405975009,1771487472902,-152.75,0.0003,2]
[405975010,1771487472911,-152.75,0.0003,2]
[405975011,1771487472921,-152.75,0.0003,2]
[405975012,1771487472930,-152.75,0.0003,2]
[405975013,1771487472939,-152.75,0.0003,2]
[405975014,1771487472949,-152.75,0.0003,2]
[405975015,1771487472959,-152.75,0.0003,2]
[405975016,1771487472968,-152.75,0.0003,2]
[405975017,1771487472978,-152.75,0.0003,2]
[405975018,1771487472988,-152.75,0.0003,2]
[405975019,1771487472998,-152.75,0.0003,2]
[405975020,1771487473010,-152.75,0.0003,2]
[405975021,1771487473019,-152.75,0.0003,2]
[405975022,1771487473029,-152.75,0.0003,2]
[405975023,1771487473039,-152.75,0.0003,2]
[405975024,1771487473049,-152.75,0.0003,2]
[405975025,1771487473059,-152.75,0.0003,2]
[405975026,1771487473068,-152.75,0.0003,2]
[405975027,1771487473078,-152.75,0.0003,2]
[405975028,1771487473087,-152.75,0.0003,2]
[405975029,1771487473097,-152.75,0.0003,2]
[405975030,1771487473113,-152.75,0.0003,2]
[405975031,1771487473123,-152.75,0.0003,2]
[405975032,1771487473133,-500.0,0.0003,5]
[405975033,1771487473143,-500.0,0.000301,30]
[405975034,1771487473153,-730.0,0.000301,30]
[405975035,1771487473162,-1077.11976082,0.0003013,2]
[405975036,1771487473172,-13895.6102297,0.0003013,2]
[405975037,1771487473182,-636.0968068,0.0003013,2]
[405975038,1771487473192,-202.35824485,0.0003013,2]
[405975039,1771487473202,-7756.0007051,0.0003013,2]
[405975040,1771487473211,-1000.0,0.00030137,120]
[405975041,1771487473220,-1536.36,0.00030137,2]
[405975042,1771487473229,-1000.0,0.00030137,2]
[405975043,1771487473239,-15585.1507897,0.000302,2]
[405975044,1771487473248,-161.82,0.000302,30]
[405975045,1771487473258,-778.80006585,0.00030231,2]
[405975046,1771487473267,-964.36669259,0.00030231,2]
[405975047,1771487473277,-176.14,0.00030411,120]
[405975048,1771487473286,-1000.0,0.00030685,2]
[405975049,1771487473295,-868.93,0.00030697,7]
[405975050,1771487473305,-3995.99,0.000307,7]
[405975051,1771487473314,-1613.99267374,0.0003084,2]
[405975052,1771487473323,-79264.40905177,0.0003095,2]
[405975053,1771487473332,-3390.61,0.00030997,2]
[405975054,1771487473342,-51724.49791369,0.00031,2]
[405975055,1771487473352,-650.0,0.00031,2]
[405975056,1771487473361,-300.190917,0.00031145,51]
[405975057,1771487473370,-617.0,0.00031195,2]
[405975058,1771487473381,-3492.0,0.00031195,2]
[405975059,1771487473391,-1275.0,0.00031195,2]
[405975060,1771487473401,-1209.0,0.00031195,2]
[405975061,1771487473410,-413.0,0.00031195,2]
[405975062,1771487473420,-2453.0,0.00031195,2]
[405975063,1771487473431,-919.0,0.00031195,2]
[405975064,1771487473441,-1000.0,0.00031233,2]
[405975065,1771487473451,-200.0,0.000314,120]
[405975066,1771487473460,-19822.86107081,0.0003143,4]
[405975067,1771487473472,-150.0,0.0003147,2]
[405975068,1771487473481,-197.97226165,0.000315,2]
[405975069,1771487473491,-150.0,0.000315,2]
[405975070,1771487473500,-500.0,0.000317,30]
[405975071,1771487473510,-1000.0,0.00031781,2]
[405975072,1771487473520,-152.0,0.00031785,4]
[405975073,1771487473530,-710.0,0.00032,12]
[405975074,1771487473540,-500.0,0.00032,120]
[405975075,1771487473549,-12850.69,0.00032,120]
[405975076,1771487473559,-1021.16,0.00032,120]
[405975077,1771487473569,-200.0,0.00032233,3]
[405975078,1771487473578,-897.06053458,0.000323,2]
[405975079,1771487473587,-20021.99999921,0.000323,2]
[405975080,1771487473596,-1000.0,0.00032329,2]
[405975081,1771487473605,-3995.99,0.000325,7]
[405975082,1771487473614,-2000.0,0.000327,2]
[405975083,1771487473623,-155.0,0.00032756,2]
[405975084,1771487473631,-1541.354,0.0003279,33]
[405975085,1771487473641,-4846.14443415,0.000328,2]
[405975086,1771487473651,-1000.0,0.00032877,120]
[405975087,1771487473660,-345.81,0.00032877,2]
[405975088,1771487473671,-1536.36,0.00032877,2]
[405975089,1771487473681,-151.0,0.00032877,31]
[405975090,1771487473691,-151.0,0.00032877,31]
[405975091,1771487473702,-170.364856,0.00032877,31]
[405975092,1771487473712,-500.0,0.00032877,2]
[405975093,1771487473725,-500.0,0.00032877,2]
[405975094,1771487473735,-370.02043245,0.00032877,2]
[405975095,1771487473744,-500.0,0.00032877,2]
[405975096,1771487473754,-500.0,0.00032877,2]
[405975097,1771487473763,-500.0,0.00032877,2]
[405975098,1771487473772,-500.79620307,0.00032877,2]
[405975099,1771487473782,-1000.0,0.00032877,2]
[405975100,1771487473792,-790.0,0.00032877,2]
[405975101,1771487473802,-5629.34,0.000329,14]
[405975102,1771487473811,-159.12,0.000329,14]
[405975103,1771487473820,-1099.79,0.000329,2]
[405975104,1771487473831,-790.0,0.00032932,2]
[405975105,1771487473840,-1021.16,0.0003296,120]
[405975106,1771487473851,-1000.04826021,0.0003297,2]
[405975107,1771487473860,-790.0,0.00032987,2]
[405975108,1771487473869,-1200.0,0.00033,12]
[405975109,1771487473879,-51466.97793225,0.00033,2]
[405975110,1771487473888,-26465.41193143,0.00033,2]
[405975111,1771487473897,-154.07336191,0.00033,2]
[405975112,1771487473906,-200.0,0.00033,120]
[405975113,1771487473915,-560.817858,0.00033,14]
[405975114,1771487474055,-700.0,0.00033,2]
[405975115,1771487474065,-790.0,0.00033041,2]
[405975116,1771487474075,-150.0,0.00033043,2]
[405975117,1771487474084,-790.0,0.00033096,2]
[405975118,1771487474093,-790.0,0.00033151,2]
[405975119,1771487474105,-790.0,0.00033206,2]
[405975120,1771487474116,-222.45,0.00033227,30]
[405975121,1771487474126,-790.0,0.00033261,2]
[405975122,1771487474135,-5629.34,0.000333,14]
[405975123,1771487474146,-790.0,0.00033315,2]
[405975124,1771487474156,-790.0,0.0003337,2]
[405975125,1771487474166,-790.0,0.00033425,2]
[405975126,1771487474176,-1000.0,0.00033425,2]
[405975127,1771487474186,-790.0,0.0003348,2]
[405975128,1771487474196,-1215.49925001,0.000335,2]
[405975129,1771487474205,-161.82,0.000335,30]
[405975130,1771487474218,-755.04426094,0.000335,30]
[405975131,1771487474229,-790.0,0.00033535,2]
[405975132,1771487474238,-790.0,0.00033589,2]
[405975133,1771487474247,-790.0,0.00033644,2]
[405975134,1771487474256,-12599.79,0.00033699,2]
[405975135,1771487474265,-790.0,0.00033699,2]
[405975136,1771487474274,-159.12,0.000337,14]
[405975137,1771487474284,-790.0,0.00033754,2]
[405975138,1771487474294,-790.0,0.00033809,2]
[405975139,1771487474303,-790.0,0.00033863,2]
[405975140,1771487474313,-5629.34,0.000339,14]
[405975141,1771487474323,-1099.79,0.000339,2]
[405975142,1771487474332,-790.0,0.00033918,2]
[405975143,1771487474342,-1021.16,0.0003392,120]
[405975144,1771487474351,-790.0,0.00033973,2]
[405975145,1771487474361,-1000.0,0.00033973,2]
[405975146,1771487474371,-1300.0,0.00034,12]
[405975147,1771487474380,-500.0,0.00034,120]
[405975148,1771487474390,-2402.6076672,0.00034,3]
[405975149,1771487474399,-522.2,0.00034,30]
[405975150,1771487474408,-790.0,0.00034028,2]
[405975151,1771487474418,-790.0,0.00034082,2]
[405975152,1771487474427,-794.93240849,0.00034137,2]
[405975153,1771487474437,-617.0,0.00034195,2]
[405975154,1771487474447,-3492.0,0.00034195,2]
[405975155,1771487474456,-1275.0,0.00034195,2]
[405975156,1771487474465,-1209.0,0.00034195,2]
[405975157,1771487474476,-413.0,0.00034195,2]
[405975158,1771487474486,-2453.0,0.00034195,2]
[405975159,1771487474495,-919.0,0.00034195,2]
[405975160,1771487474504,-3995.99,0.000342,14]
[405975161,1771487474514,-150.1,0.00034221,2]
[405975162,1771487474524,-150.1,0.00034221,2]
[405975163,1771487474533,-150.1,0.00034221,2]
[405975164,1771487474542,-150.1,0.00034221,2]
[405975165,1771487474551,-150.1,0.00034221,2]
[405975166,1771487474560,-150.1,0.00034221,2]
[405975167,1771487474570,-150.1,0.00034221,2]
[405975168,1771487474580,-150.1,0.00034221,2]
[405975169,1771487474590,-150.1,0.00034221,2]
[405975170,1771487474599,-150.1,0.00034221,2]
[405975171,1771487474609,-159.96224832,0.00034221,2]
[405975172,1771487474618,-150.59570785,0.00034221,2]
[405975173,1771487474627,-150.1,0.00034221,2]
[405975174,1771487474636,-150.1,0.00034221,2]
[405975175,1771487474646,-150.1,0.00034221,2]
[405975176,1771487474656,-150.1,0.00034221,2]
[405975177,1771487474666,-150.1,0.00034221,2]
[405975178,1771487474675,-150.1,0.00034221,2]
[405975179,1771487474685,-150.1,0.00034221,2]
[405975180,1771487474694,-150.1,0.00034221,2]
[405975181,1771487474703,-150.1,0.00034221,2]
[405975182,1771487474713,-1000.0,0.0003442,2]
[405975183,1771487474722,-1000.0,0.0003442,2]
[405975184,1771487474731,-1000.0,0.0003442,2]
[405975185,1771487474740,-1000.0,0.0003442,2]
[405975186,1771487474750,-1000.0,0.0003442,2]
[405975187,1771487474759,-1000.0,0.00034454,2]
[405975188,1771487474768,-1000.0,0.00034454,2]
[405975189,1771487474778,-1000.0,0.00034454,2]
[405975190,1771487474789,-1000.0,0.00034454,2]
[405975191,1771487474798,-1000.0,0.00034454,2]
[405975192,1771487474808,-1737.13260332,0.0003449,2]
[405975193,1771487474817,-5629.34,0.000345,14]
[405975194,1771487474827,-1000.0,0.00034521,2]
[405975195,1771487474837,-150.0,0.00034696,2]
[405975196,1771487474847,-159.12,0.000347,14]
[405975197,1771487474856,-5978.4,0.00034712,30]
[405975198,1771487474866,-152.0,0.00034758,5]
[405975199,1771487474875,-1500.0,0.00034795,2]
[405975200,1771487474885,-1099.79,0.000348,2]
[405975201,1771487474894,-382.0,0.000348,120]
[405975202,1771487474903,-1021.16,0.0003488,120]
[405975203,1771487474913,-5629.34,0.000349,14]
[405975204,1771487474923,-121799.10088614,0.00035,4]
[405975205,1771487474932,-1200.0,0.00035,12]
[405975206,1771487474941,-1000.0,0.00035,12]
[405975207,1771487474951,-1923.55317672,0.00035,2]
[405975208,1771487474961,-1624.2002667,0.00035,2]
[405975209,1771487474971,-802.3661135,0.00035,2]
[405975210,1771487474980,-240.75,0.00035,2]
[405975211,1771487474989,-750.0,0.00035,2]
[405975212,1771487474999,-5000.0,0.00035,3]
[405975213,1771487475008,-1000.0,0.00035069,2]
[405975214,1771487475018,-4817.95389944,0.00035136,14]
[405975215,1771487475027,-506.86,0.00035216,30]
[405975216,1771487475036,-99933.5548,0.0003522,30]
[405975217,1771487475046,-15684.383382,0.00035423,3]
[405975218,1771487475056,-361.78149925,0.00035456,3]
[405975219,1771487475065,-486.1284603,0.00035589,30]
[405975220,1771487475075,-177.40234237,0.00035589,120]
[405975221,1771487475084,-208.3407687,0.00035589,30]
[405975222,1771487475092,-159.12,0.000356,14]
[405975223,1771487475104,-4446.15872386,0.0003561,2]
[405975224,1771487475116,-5000.0,0.0003561,2]
[405975225,1771487475125,-1000.0,0.00035616,120]
[405975226,1771487475135,-1536.36,0.00035616,2]
[405975227,1771487475146,-665.7057085,0.00035616,2]
[405975228,1771487475156,-1000.0,0.00035617,2]
[405975229,1771487475165,-1099.79,0.000357,2]
[405975230,1771487475174,-1037.05004584,0.00035709,2]
[405975231,1771487475185,-1021.16,0.0003584,120]
[405975232,1771487475195,-160.12,0.00036,2]
[405975233,1771487475204,-5000.0,0.00036,3]
[405975234,1771487475213,-500.0,0.00036,120]
[405975235,1771487475223,-380.0,0.00036,120]
[405975236,1771487475232,-2337.4724605,0.00036,2]
[405975237,1771487475241,-431.0,0.00036,120]
[405975238,1771487475251,-401.0,0.00036,120]
[405975239,1771487475260,-213.0,0.00036,30]
[405975240,1771487475270,-1000.0,0.00036165,2]
[405975241,1771487475280,-1037.6,0.00036377,7]
[405975242,1771487475290,-2000.0,0.000364,2]
[405975243,1771487475299,-150.0,0.0003643,2]
[405975244,1771487475309,-213.0,0.00036564,30]
[405975245,1771487475318,-159.12,0.000367,14]
[405975246,1771487475328,-1000.0,0.00036713,2]
[405975247,1771487475338,-186.67,0.00036734,10]
[405975248,1771487475347,-160.00408,0.0003679,2]
[405975249,1771487475357,-1615.93570887,0.000368,2]
[405975250,1771487475366,-1961.6675387,0.000368,2]
[405975251,1771487475376,-1021.16,0.000368,120]
[405975252,1771487475385,-191.127,0.00036888,7]
[405975253,1771487475394,-14174.74575627,0.0003691,2]
[405975254,1771487475404,-222.45,0.00036969,60]
[405975255,1771487475414,-166.23800077,0.00037,2]
[405975256,1771487475423,-200.0,0.00037,120]
[405975257,1771487475433,-5000.0,0.00037,3]
[405975258,1771487475442,-339.27973104,0.00037,30]
[405975259,1771487475452,-508.04,0.00037,120]
[405975260,1771487475462,-800.0,0.00037,2]
[405975261,1771487475473,-411681.65,0.00037,14]
[405975262,1771487475482,-411681.65,0.00037,2]
[405975263,1771487475492,-617.0,0.00037195,2]
[405975264,1771487475502,-3492.0,0.00037195,2]
[405975265,1771487475511,-1275.0,0.00037195,2]
[405975266,1771487475520,-1209.0,0.00037195,2]
[405975267,1771487475530,-413.0,0.00037195,2]
[405975268,1771487475539,-2453.0,0.00037195,2]
[405975269,1771487475549,-919.0,0.00037195,2]
[405975270,1771487475558,-181.40729178,0.000372,120]
[405975271,1771487475568,-1000.0,0.00037261,2]
[405975272,1771487475577,-1037.6,0.00037359,7]
[405975273,1771487475587,-4347.339214,0.0003759,2]
[405975274,1771487475596,-152.0,0.00037731,6]
[405975275,1771487475606,-1444.0,0.00037753,120]
[405975276,1771487475615,-1021.16,0.0003776,120]
[405975277,1771487475625,-1000.0,0.00037809,2]
[405975278,1771487475635,-202.8299276,0.0003788,2]
[405975279,1771487475644,-731.27573335,0.000379,120]
[405975280,1771487475653,-266.65793827,0.00037999,120]
[405975281,1771487475663,-5629.34,0.00038,14]
[405975282,1771487475672,-1099.79,0.00038,2]
[405975283,1771487475682,-500.0,0.00038,120]
[405975284,1771487475691,-1005.0,0.00038,30]
[405975285,1771487475700,-213.0,0.00038104,30]
[405975286,1771487475710,-150.0,0.00038252,2]
[405975287,1771487475720,-238.71961381,0.00038255,2]
[405975288,1771487475730,-1037.6,0.00038342,30]
[405975289,1771487475740,-500.0,0.00038356,60]
[405975290,1771487475749,-1999.0,0.00038356,120]
[405975291,1771487475759,-1437.27778324,0.00038356,120]
[405975292,1771487475768,-620.0,0.00038356,120]
[405975293,1771487475778,-222.865518,0.00038356,120]
[405975294,1771487475787,-1000.0,0.00038357,2]
[405975295,1771487475796,-500.0,0.00038411,60]
[405975296,1771487475806,-500.0,0.00038466,60]
[405975297,1771487475815,-500.0,0.0003852,60]
[405975298,1771487475825,-500.0,0.00038575,60]
[405975299,1771487475834,-500.0,0.0003863,60]
[405975300,1771487475843,-500.0,0.00038685,60]
[405975301,1771487475852,-500.0,0.000387,120]
[405975302,1771487475861,-500.0,0.000387,120]
[405975303,1771487475871,-500.0,0.000387,120]
[405975304,1771487475880,-500.0,0.000387,120]
[405975305,1771487475889,-500.0,0.000387,120]
[405975306,1771487475898,-1782.21079453,0.000387,2]
[405975307,1771487475907,-1021.16,0.0003872,120]
[405975308,1771487475916,-534.24133215,0.0003874,60]
[405975309,1771487476036,-4483.8,0.00038831,120]
[405975310,1771487476046,-8024.71530424,0.00038834,2]
[405975311,1771487476055,-1720.143,0.00038888,30]
[405975312,1771487476064,-589.0158346,0.000389,120]
[405975313,1771487476073,-1755.895,0.000389,120]
[405975314,1771487476082,-1755.89,0.000389,120]
[405975315,1771487476094,-1999.0,0.00038904,120]
[405975316,1771487476107,-1000.0,0.00038905,2]
[405975317,1771487476116,-211.35811196,0.00038913,120]
[405975318,1771487476126,-234.58886556,0.0003899,120]
[405975319,1771487476135,-700.0,0.00039,2]
[405975320,1771487476146,-30864.33452378,0.00039,2]
[405975321,1771487476155,-151.39488244,0.00039,30]
[405975322,1771487476164,-161.0,0.00039,120]
[405975323,1771487476173,-161.0,0.00039,120]
[405975324,1771487476184,-255.32004225,0.00039,120]
[405975325,1771487476193,-3015.0,0.00039,30]
[405975326,1771487476202,-1006.0,0.00039,30]
[405975327,1771487476212,-850.0,0.00039,2]
[405975328,1771487476222,-411681.65,0.00039,14]
[405975329,1771487476231,-149923.0898,0.0003922,30]
[405975330,1771487476241,-1037.6,0.00039324,30]
[405975331,1771487476250,-1999.0,0.00039452,120]
[405975332,1771487476259,-1000.0,0.00039453,2]
[405975333,1771487476268,-651.23440357,0.00039454,120]
[405975334,1771487476278,-1021.16,0.0003968,120]
[405975335,1771487476287,-538.18393298,0.0003989,2]
[405975336,1771487476297,-3919.48879789,0.0003998,120]
[405975337,1771487476306,-1567.96318759,0.0004,2]
[405975338,1771487476316,-316.0,0.0004,5]
[405975339,1771487476325,-10023.38994177,0.0004,10]
[405975340,1771487476334,-5015.12345678,0.0004,2]
[405975341,1771487476350,-5000.0,0.0004,3]
[405975342,1771487476359,-6901.53125846,0.0004,14]
[405975343,1771487476368,-169.58241396,0.0004,2]
[405975344,1771487476376,-160.0,0.0004,10]
[405975345,1771487476386,-1321.72427735,0.0004,2]
[405975346,1771487476395,-361.77053387,0.0004,2]
[405975347,1771487476404,-219.19733822,0.0004,2]
[405975348,1771487476414,-315.32363963,0.0004,2]
[405975349,1771487476423,-161.91454899,0.0004,2]
[405975350,1771487476432,-161.82,0.0004,30]
[405975351,1771487476441,-160.0,0.0004,3]
[405975352,1771487476450,-300.0,0.0004,120]
[405975353,1771487476459,-200.14,0.0004,120]
[405975354,1771487476468,-177.0,0.0004,120]
[405975355,1771487476478,-151.0,0.0004,120]
[405975356,1771487476487,-500.0,0.0004,120]
[405975357,1771487476496,-500.0,0.0004,120]
[405975358,1771487476506,-500.0,0.0004,120]
[405975359,1771487476516,-500.0,0.0004,120]
[405975360,1771487476525,-500.0,0.0004,120]
[405975361,1771487476534,-500.0,0.0004,120]
[405975362,1771487476544,-500.0,0.0004,120]
[405975363,1771487476554,-500.0,0.0004,120]
[405975364,1771487476563,-500.0,0.0004,120]
[405975365,1771487476573,-500.0,0.0004,120]
[405975366,1771487476582,-500.0,0.0004,120]
[405975367,1771487476591,-500.0,0.0004,120]
[405975368,1771487476600,-500.0,0.0004,120]
[405975369,1771487476610,-500.0,0.0004,120]
[405975370,1771487476619,-500.0,0.0004,120]
[405975371,1771487476629,-500.0,0.0004,120]
[405975372,1771487476638,-500.0,0.0004,120]
[405975373,1771487476647,-500.0,0.0004,120]
[405975374,1771487476656,-241.65524068,0.0004,120]
[405975375,1771487476665,-7466.52598832,0.0004,120]
[405975376,1771487476675,-435.88635031,0.0004,120]
[405975377,1771487476684,-12639.5710024,0.0004,120]
[405975378,1771487476693,-173.66088786,0.0004,10]
[405975379,1771487476702,-400.48181008,0.0004,7]
[405975380,1771487476710,-5030.93751878,0.0004,5]
[405975381,1771487476721,-160.0,0.0004,120]
[405975382,1771487476730,-160.0,0.0004,10]
[405975383,1771487476739,-173.66088786,0.0004,30]
[405975384,1771487476749,-315.86742269,0.0004,120]
[405975385,1771487476758,-173.66088786,0.0004,3]
[405975386,1771487476767,-660.87,0.0004,120]
[405975387,1771487476777,-173.54,0.0004,120]
[405975388,1771487476786,-342.63,0.0004,120]
[405975389,1771487476795,-255.24,0.0004,120]
[405975390,1771487476804,-1018.13056756,0.0004,120]
[405975391,1771487476814,-1999.0,0.0004,120]
[405975392,1771487476824,-2000.0,0.0004,120]
[405975393,1771487476833,-300.0,0.00040001,2]
[405975394,1771487476842,-305.82821794,0.00040001,2]
[405975395,1771487476851,-300.0,0.00040001,2]
[405975396,1771487476860,-573.65746876,0.00040001,2]
[405975397,1771487476869,-305.82821794,0.00040001,2]
[405975398,1771487476878,-300.0,0.00040001,2]
[405975399,1771487476887,-590.55516039,0.00040001,2]
[405975400,1771487476896,-305.82821794,0.00040001,2]
[405975401,1771487476906,-300.0,0.00040001,2]
[405975402,1771487476916,-305.82821794,0.00040001,2]
[405975403,1771487476925,-300.0,0.00040001,2]
[405975404,1771487476934,-305.82821794,0.00040001,2]
[405975405,1771487476944,-300.0,0.00040001,2]
[405975406,1771487476953,-305.82821794,0.00040001,2]
[405975407,1771487476962,-300.0,0.00040001,2]
[405975408,1771487476972,-305.82821794,0.00040001,2]
[405975409,1771487476982,-300.0,0.00040001,2]
[405975410,1771487476991,-855.07863865,0.00040001,2]
[405975411,1771487477001,-855.07863865,0.00040001,2]
[405975412,1771487477009,-883.85715657,0.00040001,2]
[405975413,1771487477018,-307.0602376,0.00040001,2]
[405975414,1771487477027,-458.46094533,0.00040001,2]
[405975415,1771487477037,-300.0,0.00040001,2]
[405975416,1771487477046,-371.13983204,0.00040001,2]